Cogmind - Beta 16 @@@ ROGUE MODE // 2025.12.24 @ 16:51:50 Player: winnking222 Result: Core destroyed Performance ------------- Evolutions (0) 0 Regions Visited (2) 400 Robots Destroyed (33) 165 Value Destroyed (795) 795 Prototype IDs (0) 0 Alien Tech Used (0) 0 Bonus (0) 0 TOTAL SCORE: 1360 Bonus ------- None Cogmind --------- Core Integrity 0/250 Matter 300/300 Energy 172/250 System Corruption 0% Temperature Critical (566) Movement Rolling (175) Ox5 Location -10/Subcaves Parts ------- > --- POWER (1) -------- Ion Engine > --- PROPULSION (2) --- Light Treads Compact Wheel > --- UTILITY (2) ------ Huge Storage Unit Seismic Detector > --- WEAPON (2) ------- Subdweller Laser > --- INVENTORY (25) --- Ion Engine Subdweller Power Source Makeshift Power Source Makeshift Power Source Compact Wheel Subdweller Monowheel Subdweller Monowheel Subdweller Monowheel Small Storage Unit Small Storage Unit Huge Storage Unit High-capacity Matter Pod (200) Seismic Detector Scrap Shield Makeshift Hacking Suite Subdweller Laser Beam Cannon Beam Cannon Beam Cannon Beam Cannon Battle Cannon Grenade Launcher Shrapnel Trap Peak State ------------ > --- POWER ------------ Ion Engine > --- PROPULSION ------- Light Treads Compact Wheel > --- UTILITY ---------- Huge Storage Unit Seismic Detector > --- WEAPON ----------- Subdweller Laser Subdweller Laser > --- INVENTORY -------- Ion Engine Subdweller Power Source Makeshift Power Source Makeshift Power Source Compact Wheel Subdweller Monowheel Subdweller Monowheel Subdweller Monowheel Small Storage Unit Small Storage Unit Huge Storage Unit High-capacity Matter Pod Seismic Detector Scrap Shield Makeshift Hacking Suite Subdweller Laser Beam Cannon Beam Cannon Beam Cannon Beam Cannon Battle Cannon Grenade Launcher Shrapnel Trap [Rating: 13] Favorites ----------- Power Ion Engine Engine Ion Engine Propulsion Light Treads Treads Light Treads Leg Aluminum Leg Wheel Compact Wheel Utility Seismic Detector Device Seismic Detector Storage Huge Storage Unit Weapon Beam Cannon Energy Gun Small Laser Energy Cannon Beam Cannon Ballistic Gun Assault Rifle Build | -11 -10 -10 ------- Run | Yrd Mat Sub Slots Evolved . | . . . Power . | . . . Propulsion . | . . . Utility . | . . . Weapon . | . . . Parts Attached 23 | 7 6 10 Power 2 | 1 . 1 Engine 2 | 1 . 1 Core . | . . . Reactor . | . . . Propulsion 6 | 2 2 2 Treads 3 | . 2 1 Leg 2 | 2 . . Wheel 1 | . . 1 Hover . | . . . Flight . | . . . Utility 3 | 2 1 . Device 1 | 1 . . Storage 2 | 1 1 . Processor . | . . . Hackware . | . . . Protection . | . . . Artifact . | . . . Weapon 12 | 2 3 7 Energy Gun 6 | 2 1 3 Energy Cannon 3 | . . 3 Ballistic Gun 3 | . 2 1 Ballistic Cannon . | . . . Launcher . | . . . Special Weapon . | . . . Impact Weapon . | . . . Slashing Weapon . | . . . Piercing Weapon . | . . . Special Melee Weapon . | . . . Unidentified Prototypes . | . . . Parts Lost 6 | . . 6 Power 1 | . . 1 Propulsion 2 | . . 2 Utility . | . . . Weapon 3 | . . 3 Highest Loss Streak 3 | . . 3 To Critical Strikes . | . . . Average Backups 15 | 5 14 18 Power 2 | . 1 2 Propulsion 2 | 3 2 3 Utility 4 | . 3 5 Weapon 5 | . 5 6 Tool/Special . | . . . Unused Backups 21 | . 1 20 Power 4 | . . 4 Propulsion 4 | . . 4 Utility 6 | . . 6 Weapon 7 | . 1 6 Tool/Special . | . . . Average Slot Usage (%) 99 | . 100 99 Engine 14 | . 14 14 Treads 24 | . 25 22 Leg 1 | . 2 . Wheel 2 | . . 6 Device 14 | . 14 14 Storage 14 | . 14 14 Energy Gun 15 | . 18 11 Energy Cannon 6 | . . 15 Ballistic Gun 6 | . 9 1 Peak Build Rating 13 | 7 8 13 Average Rating 8 | 5 7 10 On Entrance 5 | . 7 8 Avg Prop Armor Cover (%) 14 | . . 14 Naked Turns . | . . . Heaviest Build 94 | 15 90 94 Greatest Support 40 | 20 40 40 Greatest Overweight (x) 5 | . 2 5 Average Overweight (x) 2 | . 1 3 Largest Inventory Capacity 25 | 8 25 25 Average Capacity 22 | 7 22 25 Most Carried 25 | 7 17 25 Average Carried 15 | 5 14 19 Final Capacity 25 | 8 25 25 Final Carried 24 | 7 17 24 Class Distribution -------------------- 100% | Mutant Dominant Class ---------------- Mutant | -10/Materials Mutant | -10/Subcaves Resources | -11 -10 -10 ----------- Run | Yrd Mat Sub Matter Collected 718 | 270 348 100 Remotely . | . . . Salvage Created 1209 | 179 711 319 Parts 71 | 13 41 17 Haulers Intercepted 2 | . 2 . Recyclers Shooed 2 | . 2 . Parts Field Recycled . | . . . Retrieved Matter . | . . . Parts Self-Destructed 12 | . . 12 Prevented . | . . . Parts Restored . | . . . Kills | -11 -10 -10 ------- Run | Yrd Mat Sub Combat Hostiles Destroyed 23 | . 13 10 Guns 14 | . 12 2 Cannons 8 | . . 8 AOE 1 | . 1 . Classes Destroyed 7 | 2 4 1 Tunneler 4 | 4 . . Hauler 2 | . 2 . Recycler 2 | 1 1 . Watcher 2 | . 2 . Swarmer 6 | . 3 3 Grunt 10 | . 10 . Subdweller 7 | . . 7 Best Kill Streak 4 | 3 4 3 Combat Bots Only 3 | . 3 3 Max Kills in Single Turn 1 | 1 1 1 Gunslinging . | . . . Exploded 1 | . 1 . Melee . | . . . Uniques/NPCs Destroyed . | . . . Combat | -11 -10 -10 -------- Run | Yrd Mat Sub Hostile Shots Fired 121 | . 75 46 Missed 42 | . 25 17 Hits 79 | . 50 29 Projectile 79 | . 50 29 Critical Strikes 3 | . 1 2 Damage Taken 1205 | 18 589 598 Core 260 | 9 114 137 Absorbed by Shields . | . . . Core Remaining (%) 96 | 96 . . Volleys Fired 125 | 10 63 52 Largest 2 | 2 2 2 Hottest 210 | 80 80 210 Shots Fired 245 | 20 126 99 Gun 194 | 20 126 48 Cannon 51 | . . 51 Launcher . | . . . Special . | . . . Kinetic 49 | . 43 6 Thermal 136 | . 43 93 Explosive . | . . . Electromagnetic 60 | 20 40 . Robot Hit Streak 21 | 3 10 21 Robot Miss Streak 7 | 3 7 2 Penetration Max . | . . . Secondary Targets 2 | . 2 . Max Gunslinging Chain 1 | . 1 . Shots Hit Robots 135 | 8 77 50 Core Hits 54 | 5 32 17 Critical Kills 1 | . 1 . Critical Parts Destroyed . | . . . Critical Strikes 4 | . 2 2 Burn 2 | . . 2 Destroy 1 | . 1 . Corrupt 1 | . 1 . Melee Attacks . | . . . Impact . | . . . Slashing . | . . . Piercing . | . . . Sneak Attacks . | . . . Combat Hostiles . | . . . Follow-up Attacks . | . . . Damage Inflicted 2086 | 137 1016 933 Guns 1449 | 114 964 371 Cannons 562 | . . 562 Explosions 70 | 23 47 . Melee . | . . . Ramming 5 | . 5 . Kinetic 347 | . 327 20 Thermal 1315 | 23 379 913 Explosive . | . . . Electromagnetic 419 | 114 305 . Impact . | . . . Slashing . | . . . Piercing . | . . . Highest Corruption . | . . . Average Corruption . | . . . Corruption Purged . | . . . Corruption Blocked . | . . . Overload Shots 6 | . . 6 Effects 2 | . . 2 Energy Bleed 1 | . . 1 Heat Surge 1 | . . 1 Overflow Damage . | . . . Projectiles . | . . . Explosions . | . . . Melee . | . . . Knockbacks . | . . . Impact . | . . . Kinetic . | . . . Secondary . | . . . Self-Inflicted Damage 18 | 18 . . Shots 1 | 1 . . Rammed 3 | . 3 . Targets Rammed 3 | . 3 . Kicked . | . . . Crushed . | . . . Highest Temperature 566 | 64 132 566 Average Temperature 60 | 28 46 117 Received Heat Transfer 947 | . 330 617 Effects 2 | . . 2 Energy Bleed 1 | . . 1 Damage (core) 1 | . . 1 Siege Activations . | . . . Martial Activations . | . . . Shielding Activations . | . . . Robots Disrupted . | . . . Combat Hostiles . | . . . Robots Corrupted . | . . . Combat Hostiles . | . . . Parts Fried 1 | . 1 . Impact Corruptions . | . . . Robots Melted . | . . . Combat Hostiles . | . . . Parts Melted 1 | . . 1 Heat Transferred 2703 | 50 750 1903 Parts Sabotaged . | . . . Parts Stolen . | . . . Parts Stripped . | . . . Power Chain Reactions 2 | 1 1 . Alert | -11 -10 -10 ------- Run | Yrd Mat Sub Maximum Alert Level . | . . . Low Security (%) 100 | 100 100 . Level 1 . | . . . Level 2 . | . . . Level 3 . | . . . Level 4 . | . . . Level 5 . | . . . High Security . | . . . Max Security . | . . . Peak Influence 87 | 10 87 . Initial . | . . . Average 23 | 2 24 . Influence Increases 501 | 25 406 70 Destroy 0b10 Robot/C 320 | . 260 60 Destroy 0b10 Robot/NC 50 | 25 25 . Destroy Leader 78 | . 68 10 Successful Hack 20 | . 20 . Destroy Structure 3 | . 3 . Lose Combat Pursuer 30 | . 30 . Influence Decreases 501 | 25 394 82 Entered New Map 7 | . . 7 Time Decay 484 | 25 394 65 Lost Part 10 | . . 10 Squads Dispatched 2 | . 2 . Investigation . | . . . Extermination . | . . . Reinforcement 2 | . 2 . Assault . | . . . Garrison . | . . . Intercept . | . . . Searches Triggered . | . . . Construction Impeded . | . . . Haulers Reinforced . | . . . Active Scanning Responses . | . . . Cargo Convoy Interrupts . | . . . Stealth | -11 -10 -10 --------- Run | Yrd Mat Sub Distress Signals 2 | . 2 . Communications Jammed . | . . . Distress Signals . | . . . Times Spotted 33 | . 22 11 Peak Tracking Total 4 | . 4 2 Tactical Retreats 2 | . 2 . Traps | -11 -10 -10 ------- Run | Yrd Mat Sub Traps Triggered . | . . . Indirectly . | . . . Trap Hack Attempts . | . . . Triggered . | . . . Disarmed . | . . . Reprogrammed . | . . . Reused . | . . . Traps Extracted . | . . . Installed . | . . . Triggered . | . . . Most Traps Carried 1 | . . 1 Machines | -11 -10 -10 ---------- Run | Yrd Mat Sub Machines Disabled . | . . . Max in Single Turn . | . . . Machines Repaired . | . . . Machines Dismantled . | . . . Machines Sabotaged . | . . . Overloaded Fab Kills . | . . . Hacking | -11 -10 -10 --------- Run | Yrd Mat Sub Machines Accessed 5 | . 5 . Terminals 5 | . 5 . Fabricators . | . . . Repair Stations . | . . . Recycling Units . | . . . Scanalyzers . | . . . Garrison Access . | . . . Total Hacks 10 | . 10 . Successful 8 | . 8 . Failed 2 | . 2 . Catastrophic . | . . . Database Lockouts . | . . . Manual 10 | . 10 . Terminals 10 | . 10 . Fabricators . | . . . Repair Stations . | . . . Recycling Units . | . . . Scanalyzers . | . . . Garrison Access . | . . . Terminal Hacks . | . . . Fabricator Hacks . | . . . Repair Station Hacks . | . . . Recycling Unit Hacks . | . . . Scanalyzer . | . . . Garrison Access Hacks . | . . . Unauthorized Hacks 8 | . 8 . Terminals 8 | . 8 . Botnet 4 | . 4 . Skim 4 | . 4 . Fabricators . | . . . Repair Stations . | . . . Recycling Units . | . . . Scanalyzers . | . . . Garrison Access . | . . . Data Cores Recovered . | . . . Used . | . . . Hacking Detections 4 | . 4 . Full Trace Events . | . . . Feedback Events . | . . . Feedback Blocked . | . . . Robot Schematics Acquired . | . . . Robots Built . | . . . Authchips . | . . . Time . | . . . Total Robot Build Rating . | . . . Part Schematics Acquired . | . . . Parts Built . | . . . Authchips . | . . . Time . | . . . Total Part Build Rating . | . . . Part Studies Acquired . | . . . Parts Repaired . | . . . Time . | . . . Parts Recycled . | . . . Recycled Matter . | . . . Retrieved Matter . | . . . Retrieved Components . | . . . Parts Scanalyzed . | . . . Part Schematics Acquired . | . . . Parts Damaged . | . . . Bothacking | -11 -10 -10 ------------ Run | Yrd Mat Sub Used RIF Installer . | . . . Robots Hacked . | . . . Non-combat . | . . . Combat . | . . . Robot Hacks Applied . | . . . Relay Couplers Released . | . . . Fabnet Peak Effective % . | . . . Robots Rewired . | . . . Allies Hacked . | . . . Hacks Repelled . | . . . Allies | -11 -10 -10 -------- Run | Yrd Mat Sub Total Allies . | . . . Largest Group . | . . . Highest-Rated Group . | . . . Highest-Rated Ally . | . . . Total Orders . | . . . Ally Attacks . | . . . Total Damage . | . . . Kills . | . . . Allies Corrupted . | . . . Allies Melted . | . . . Intel | -11 -10 -10 ------- Run | Yrd Mat Sub Active Infowar (turns) 2856 | 29 1654 1173 Seismic 2856 | 29 1654 1173 Robot Analysis Total . | . . . Derelict Logs Recovered 1 | . . 1 Drone Launches . | . . . Drone Recoveries . | . . . Exploration | -11 -10 -10 ------------- Run | Yrd Mat Sub Turns Passed 2938 | 112 1654 1172 Spaces Moved 983 | 56 527 400 Core 11 | 11 . . Treads 631 | . 447 184 Legs 125 | 45 80 . Wheels 216 | . . 216 Hover . | . . . Flight . | . . . Fastest Speed 50 | 50 120 175 Average Speed 249 | 106 269 241 Slowest Speed 320 | 120 320 320 Overloaded Moves . | . . . Propulsion Burnouts . | . . . Robots Hopped . | . . . Potential Cave-ins . | . . . Cave-ins Triggered . | . . . Exploration Rate (%) 43 | 3 92 34 Regions Visited 2 Branch Regions 1 Pre-discovered Areas 1 | . . 1 Known Exits Taken . | . . . Unknown Exits Taken 2 | 1 1 . Scrap Searched 2 | . . 2 Spaces Dug . | . . . Terrain Destroyed 11 | 7 3 1 Melee . | . . . Projectile 1 | . . 1 AOE 10 | 7 3 . Terrain Rammed . | . . . Walls Destroyed . | . . . Machines Disabled . | . . . Actions | -11 -10 -10 --------- Run | Yrd Mat Sub Total 1233 | 87 638 508 Wait 48 | 4 17 27 Move 981 | 55 526 400 Hop . | . . . Pick Up 42 | 11 16 15 Fast Attach 3 | 3 . . Attach 15 | 4 3 8 Detach . | . . . Swap 5 | . 3 2 Drop 11 | . 7 4 Fire 125 | 10 63 52 Melee . | . . . Ram . | . . . Kick . | . . . Crush 3 | . 3 . Escape Stasis . | . . . Rewire . | . . . Trap . | . . . Miscellaneous . | . . . Route ------- -11/Scrapyard -10/Materials (discovered 5 exits: [*Mat x3] / [*Min] / [*Sub]) -10/Subcaves (discovered 1 exit: [*Scr]) History --------- Turn | Location | Event 10 | -11/Scrapyard | Discovered new exit (range 15) 113 | -11/Scrapyard | Entered Materials 303 | -10/Materials | Build established: Mutant 320 | -10/Materials | Discovered new exit (range 13) 358 | -10/Materials | Discovered new exit (range 15) 746 | -10/Materials | Discovered new exit (range 14) 1722 | -10/Materials | Discovered new exit (range 16) 1741 | -10/Materials | Discovered new exit (range 9) 1767 | -10/Materials | Entered Subcaves 1768 | -10/Subcaves | Shifting Twisted Machinery released Shrapnel Trap 1768 | -10/Subcaves | Shifting Twisted Machinery released Mak. Laser 1768 | -10/Subcaves | Approached by a straggling Scientist 1921 | -10/Subcaves | Core integrity fell below 50% 2076 | -10/Subcaves | Lost 3 parts (1p1n1w) 2090 | -10/Subcaves | Scientist uncovered a shortcut to Scraptown 2175 | -10/Subcaves | Learned location of Zion (-7) 2175 | -10/Subcaves | Met a Zionite searching for "candidates" 2745 | -10/Subcaves | Shifting Twisted Machinery released Mak. Power Source 2938 | -10/Subcaves | Core integrity fell below 20% 2940 | -10/Subcaves | Core destroyed Last Messages --------------- 02565_ Searching scrap... 02565_ Found Battle Cannon. 02565_ Found Scrap Shield. 02565_ Found 39 Matter. 02571_ Acquired Battle Cannon. 02573_ Acquired Scrap Shield. 02576_ Searching scrap... 02576_ Found Sub. Laser. 02576_ Found 66 Matter. 02580_ Acquired Sub. Laser. 02583_ Dropped Beam Cannon. 02597_ Acquired 20 matter. 02606_ Subatomizers dissect the Sub. Optics. Mak. Power Source falls loose from the Twisted Machinery. 02754_ Acquired Mak. Power Source. 02933_ Critical hit (Meltdown: +270). 02936_ Overheating: Energy bleed (-42). 02939_ Sub. Laser destroyed. 02939_ Critical hit (Meltdown: +260). 02940_ Overheating: Core damaged (-42). Map ----- +----------------------------------------------------+ | ?????????????????????????????????????????????????? | | ??????????????????????????????????#??????????????? | | ?????????????????????????????????? ## ???????????? | | ?????????????????????????????????? ???????????? | | ?????????????????????????????????? ???????????? | | ?????????????????????????????????? ???????????? | | ??????????????????????? ????????? #???????????? | | ???????????????????????? ##??????? #???????????? | | ????????????????????????? #??#### #???????????? | | ?????????????????????????# ??# #???????????? | | ?????????????????????? ?## ### ######??????? | | ?????????????????????? "# # #??????? | | ??????????????????????"" #??????? | | ????????????????????????? ????????? | | ???????????????????????????# ??????????? | | ??????????????????????##"??# ##??????????? | | ?????????????????????##""### #??????????? | | ?????????????????????# "# ##??????????? | | ??????????????????##?# "" % #???????????? | | ?????????????????##"## #???????????? | | ?????????????????# ## # ### #??????????? | | ?????????????????# #??# #?? #??????????? | | ?????????????????# #?## ##?? #??????????? | | ?????????????????# R;## ##??? ##??????????? | | ???????????????????# ##= ##??? ???????????? | | ????????????????????# @ % #??? #??????????? | | ????????????????????# ##"# ##? ### #??????????? | | ????????????????????## ##### #? #??##??????????? | | ?????????????????????##???#"" ### ##?????????????? | | ??????????????????????????# " " #?????????????? | | ??????????????????????????## "" ##?????#####?### | | ???????????????????????????#" """##??????# # ### | | ???????????????????????????## "##??????## | | ????????????????????????????## ""######?# | | ?????????????????????????????# """"#" ### # # | | ?????????????????????????????# " "" " ##### | | ?????????????????????????????#"" " #???? | | ?????????????????????????????###" # #### #???? | | ???????????????????????????????## "####??####### | | ????????????????????????????????# ######???# | | ????????????????????????????????## # #???# ## | | ?????????????????????????????????#### #????# #?? | | ???????????????????????????????????## ###### #?? | | ??????????????????????????????????## "# # #?? | | ?????????????????????????????????## " ##? | | ?????????????????????????????????# " ## | | ?????????????????????????????????# ### | | ?????????????????????????????????# #### ###?## | | ?????????????????????????????????##??# #??# # | | ?????????????????????????????????????## ####% ## | +----------------------------------------------------+ Best States ------------- Heat Dissipation 25 Energy Generation 10 Energy Capacity 250 Matter Stores 300 Matter Capacity 300 Sight Range 16 Terrain Scan Density 10 Evasion (%) 55 Recoil Reduction 2 Item Schematics ----------------- None Robot Schematics ------------------ None Fabricated ------------ Nothing Repaired ---------- Nothing Studied --------- None Alien Tech Used ----------------- None Achievements -------------- None Challenges ------------ None Game ------ Seed ThrusterMissileInterrupter Manual? 0 Play Time 00:11:06 Cumulative 213.4 hours Start 2025.12.24 @ 16:38:36 End 2025.12.24 @ 16:51:50 Sessions 1 Manual Loads 0 Difficulty Rogue Special Mode None Game No. 299 Rogue 299 Adventurer 0 Explorer 0 Win Type - Total 3 Types 2/0/0/1/0/0/0/0/0/0 Lore% 74 Gallery% 73 Achievement% 49 Wizard Run 0 Options --------- Layout 0 ASCII 0 Keyboard 0 Movement Mouse Keybinds 0 Fullscreen 1 Font 16/SmallcapsGlow Map View 75x55 Zoom Use 0% Tactical HUD 1 Map Filters NONE Filters NONE Steam 1 RUN: 6445388a-89ee-4fa5-be82-b601412cc25c